bitfinex/quotes_BTCUSD_20250917
["timestamp","ask_amount","ask_price","bid_price","bid_amount"]
[1758129054364,2.0295438,115860.0,115850.0,0.10214]
[1758129056645,2.0325238,115860.0,115850.0,0.10214]
[1758129057271,2.0325238,115860.0,115850.0,0.1]
[1758129060984,1.9416238,115860.0,115850.0,0.1]
[1758129062847,1.94162332,115860.0,115850.0,0.1]
[1758129066489,1.93302336,115860.0,115850.0,0.1]
[1758129071551,1.94162332,115860.0,115850.0,0.1]
[1758129073389,1.91534332,115860.0,115850.0,0.10212]
[1758129073917,1.94263332,115860.0,115850.0,0.1]
[1758129079068,2.32814623,115860.0,115850.0,1e-08]
[1758129079292,2.37814623,115860.0,115850.0,1e-08]
[1758129080124,2.46904623,115860.0,115850.0,1e-08]
[1758129082105,2.37814623,115860.0,115850.0,1e-08]
[1758129082323,2.37815589,115860.0,115850.0,1e-08]
[1758129086877,2.39905899,115860.0,115850.0,1e-08]
[1758129089958,2.90089785,115860.0,115850.0,1e-08]
[1758129092646,2.89229789,115860.0,115850.0,1e-08]
[1758129093255,2.87999475,115860.0,115850.0,1e-08]
[1758129093453,2.90089785,115860.0,115850.0,1e-08]
[1758129094084,2.90089042,115860.0,115850.0,1e-08]
[1758129095330,0.54281873,115830.0,115820.0,0.07133573]
[1758129095546,0.54281873,115830.0,115820.0,0.0718073]
[1758129095547,1.00066587,115830.0,115820.0,0.0718073]
[1758129095807,1.82138651,115830.0,115820.0,0.0739273]
[1758129096237,1.82138651,115830.0,115820.0,0.00571157]
[1758129097518,1.84963651,115830.0,115820.0,0.00259157]
[1758129097730,1.84963651,115830.0,115820.0,0.00359157]
[1758129097931,1.84647651,115830.0,115820.0,0.00359157]
[1758129098174,1.82138651,115830.0,115820.0,0.00654157]
[1758129098399,1.84733806,115830.0,115820.0,0.00654157]
[1758129098641,1.84733806,115830.0,115820.0,0.00554157]
[1758129098853,1.02861742,115830.0,115820.0,0.00554157]
[1758129099065,1.84933806,115830.0,115820.0,0.00554157]
[1758129099286,1.85792632,115830.0,115820.0,0.00259157]
[1758129099544,1.92351213,115830.0,115820.0,0.00259157]
[1758129099740,2.01683213,115830.0,115820.0,0.00259157]
[1758129100171,2.00823217,115830.0,115820.0,0.00259157]
[1758129100418,2.01032217,115830.0,115820.0,0.00259157]
[1758129100669,2.03332217,115830.0,115820.0,0.00259157]
[1758129100850,2.01032217,115830.0,115820.0,0.00259157]
[1758129101085,2.03332217,115830.0,115820.0,0.00259157]
[1758129102133,2.03330595,115830.0,115820.0,0.00259157]
[1758129104279,2.40670595,115830.0,115820.0,0.00259157]
[1758129105099,2.40986595,115830.0,115820.0,0.00047157]
[1758129105277,2.41846591,115830.0,115820.0,0.00047157]
[1758129105755,2.41846591,115830.0,115820.0,0.00259157]
[1758129105756,2.41530591,115830.0,115820.0,0.00259157]
[1758129106181,1.59774527,115830.0,115820.0,0.00259157]
[1758129106354,2.41846591,115830.0,115820.0,0.00047157]
[1758129107573,1.59774527,115830.0,115820.0,0.00259157]
[1758129107768,2.41846591,115830.0,115820.0,0.00047157]
[1758129108585,2.46846591,115830.0,115820.0,0.00047157]
[1758129111929,2.45986595,115830.0,115820.0,0.00047157]
[1758129112560,2.45986957,115830.0,115820.0,0.00047157]
[1758129116999,2.46846953,115830.0,115820.0,0.00047157]
[1758129120309,2.11897953,115830.0,115820.0,0.00256157]
[1758129120527,2.38969953,115830.0,115820.0,0.00557157]
[1758129122140,2.38109957,115830.0,115820.0,0.00557157]
[1758129127372,2.38969953,115830.0,115820.0,0.00557157]
[1758129127801,2.41326953,115830.0,115820.0,0.00256157]
[1758129128631,2.41523953,115830.0,115820.0,0.00256157]
[1758129132713,2.41326953,115830.0,115820.0,0.00256157]
[1758129132936,1.29825889,115830.0,115820.0,0.00576157]
[1758129133148,2.38945953,115830.0,115820.0,0.00576157]
[1758129134645,2.38085957,115830.0,115820.0,0.00576157]
[1758129136821,1.56013893,115830.0,115820.0,0.00576157]
[1758129137044,2.38085957,115830.0,115820.0,0.00576157]
[1758129137254,2.11037957,115830.0,115820.0,0.00576157]
[1758129137467,2.38085957,115830.0,115820.0,0.00576157]
[1758129138176,2.82985957,115830.0,115820.0,0.00576157]
[1758129139452,2.55937957,115830.0,115820.0,0.00576157]
[1758129139668,2.82985957,115830.0,115820.0,0.00576157]
[1758129139872,2.83845953,115830.0,115820.0,0.00576157]
[1758129140413,2.83848254,115830.0,115820.0,0.00576157]
[1758129140836,2.56800254,115830.0,115820.0,0.00576157]
[1758129141070,2.83848254,115830.0,115820.0,0.00576157]
[1758129141275,2.35157382,115830.0,115820.0,0.00576157]
[1758129141572,2.32142192,115830.0,115820.0,0.00576157]
[1758129141762,2.35157382,115830.0,115820.0,0.00576157]
[1758129142121,2.31942192,115830.0,115820.0,0.00576157]
[1758129142329,2.43484349,115830.0,115820.0,0.00576157]
[1758129142536,2.43584349,115830.0,115820.0,0.00576157]
[1758129142752,1.4912135,115830.0,115820.0,0.00576157]
[1758129142978,1.4912135,115830.0,115820.0,0.41612189]
[1758129143192,1.47401398,115830.0,115820.0,0.00576157]
[1758129143422,1.8843743,115830.0,115820.0,0.00676157]
[1758129143626,1.6138943,115830.0,115820.0,0.00676157]
[1758129143844,1.40842817,115830.0,115820.0,0.17944331]
[1758129144282,1.49369784,115830.0,115820.0,0.17944331]
[1758129144943,1.40842817,115830.0,115820.0,0.17944331]
[1758129145803,1.13794817,115830.0,115820.0,0.00676157]
[1758129146030,1.81874849,115830.0,115820.0,0.00676157]
[1758129146920,1.54830849,115830.0,115820.0,0.00686157]
[1758129147092,1.81874849,115830.0,115820.0,0.00686157]
[1758129147315,1.54830849,115830.0,115820.0,0.00686157]
[1758129147512,1.81874849,115830.0,115820.0,0.00686157]
[1758129147730,1.90401816,115830.0,115820.0,0.00686157]
[1758129151785,1.49365784,115830.0,115820.0,0.00686157]
[1758129155830,1.85833242,115830.0,115820.0,0.00686157]
[1758129155971,1.49365784,115830.0,115820.0,0.00686157]
[1758129156180,1.85833242,115830.0,115820.0,0.00686157]
[1758129157867,1.77306275,115830.0,115820.0,0.17954331]
[1758129158299,1.40838817,115830.0,115820.0,0.17954331]
[1758129159493,1.40838817,115830.0,115820.0,0.00686157]
[1758129160113,1.39978821,115830.0,115820.0,0.17954331]
[1758129160796,1.39974821,115830.0,115820.0,0.17954331]
[1758129161097,1.48501788,115830.0,115820.0,0.00686157]
[1758129161786,1.48501788,115830.0,115820.0,0.19681148]
[1758129161956,1.48501788,115830.0,115820.0,0.17954331]
[1758129163315,1.39974821,115830.0,115820.0,0.17954331]
[1758129165862,1.39974821,115830.0,115820.0,0.00686157]
[1758129166019,1.39974821,115830.0,115820.0,0.02412974]
[1758129166431,1.76442279,115830.0,115820.0,0.00686157]
[1758129166638,1.76638279,115830.0,115820.0,0.00366157]
[1758129166866,1.94406531,115830.0,115820.0,0.00157157]
[1758129168243,1.91994531,115830.0,115820.0,0.00157157]
[1758129168459,1.94406531,115830.0,115820.0,0.00157157]
[1758129168669,1.96024222,115830.0,115820.0,0.00157157]
[1758129169765,1.96024222,115830.0,115820.0,0.00147157]
[1758129175845,1.960235,115830.0,115820.0,0.00147157]
[1758129184106,1.96883496,115830.0,115820.0,0.00147157]
[1758129184309,1.60416038,115830.0,115820.0,0.00147157]
[1758129184529,1.96883496,115830.0,115820.0,0.00147157]
[1758129185220,1.60416038,115830.0,115820.0,0.00361157]
[1758129185445,1.96883496,115830.0,115820.0,0.00147157]
[1758129186046,1.67431496,115830.0,115820.0,0.00147157]
[1758129186242,1.93957496,115830.0,115820.0,0.00665157]
[1758129186664,1.93957496,115830.0,115820.0,0.00361157]
[1758129186866,1.96497496,115830.0,115820.0,0.00361157]
[1758129187302,1.96790496,115830.0,115820.0,0.00147157]
[1758129195346,1.9892871,115830.0,115820.0,0.00147157]
[1758129195768,2.0392871,115830.0,115820.0,0.00147157]
[1758129196656,2.03068714,115830.0,115820.0,0.00147157]
[1758129201918,2.0392871,115830.0,115820.0,0.00147157]
[1758129202148,2.01790496,115830.0,115820.0,0.00147157]
[1758129206154,1.69750496,115830.0,115820.0,0.00147157]
[1758129206372,1.96790496,115830.0,115820.0,0.00361157]
[1758129206791,1.96790496,115830.0,115820.0,0.00147157]
[1758129209805,1.96790496,115830.0,115820.0,0.00361157]
[1758129211424,1.96790496,115830.0,115820.0,0.00147157]
[1758129213712,2.42419708,115830.0,115820.0,0.00147157]
[1758129216021,1.60333038,115830.0,115820.0,0.00147157]
[1758129216207,2.42429708,115830.0,115820.0,0.00147157]
[1758129218253,2.41569712,115830.0,115820.0,0.00147157]
[1758129219106,1.29590042,115830.0,115820.0,0.00362157]
[1758129219325,2.38722712,115830.0,115820.0,0.00679157]
[1758129219535,2.38927712,115830.0,115820.0,0.00362157]
[1758129219931,2.41304712,115830.0,115820.0,0.00362157]
[1758129220132,1.59208042,115830.0,115820.0,0.00362157]
[1758129220324,2.41304712,115830.0,115820.0,0.00362157]
[1758129221200,2.15128708,115830.0,115820.0,0.00362157]
[1758129221386,2.39787708,115830.0,115820.0,0.00362157]
[1758129221594,2.39582708,115830.0,115820.0,0.00679157]
[1758129222758,1.59956216,115830.0,115820.0,0.00679157]
[1758129223010,1.86992216,115830.0,115820.0,0.00679157]
[1758129223247,1.56007406,115830.0,115820.0,0.00679157]
[1758129223495,1.48959071,115830.0,115820.0,0.00679157]
[1758129223743,1.90007406,115830.0,115820.0,0.00679157]
[1758129224393,1.98534373,115830.0,115820.0,0.00679157]
[1758129225327,2.39582708,115830.0,115820.0,0.00679157]
[1758129225760,1.57486038,115830.0,115820.0,0.00679157]
[1758129225964,2.39789195,115830.0,115820.0,0.00362157]
[1758129226581,2.40092195,115830.0,115820.0,0.00362157]
[1758129226791,2.42469195,115830.0,115820.0,0.00147157]
[1758129227239,2.42469195,115830.0,115820.0,0.00362157]
[1758129227476,2.39789195,115830.0,115820.0,0.00362157]
[1758129228759,2.39584195,115830.0,115820.0,0.00362157]
[1758129229186,2.39789195,115830.0,115820.0,0.00362157]
[1758129230291,2.39789195,115830.0,115820.0,0.00147157]
[1758129230292,2.42469195,115830.0,115820.0,0.00147157]
[1758129231151,2.44607409,115830.0,115820.0,0.00147157]
[1758129233644,2.44606679,115830.0,115820.0,0.00147157]
[1758129234029,2.43746683,115830.0,115820.0,0.00147157]
[1758129239300,2.42468465,115830.0,115820.0,0.00147157]
[1758129253838,2.44606679,115830.0,115820.0,0.00147157]
[1758129261033,1.30450795,115830.0,115820.0,0.00673157]
[1758129261319,2.39583465,115830.0,115820.0,0.00673157]
[1758129261562,2.39792465,115830.0,115820.0,0.00359157]
[1758129261787,2.39583465,115830.0,115820.0,0.00673157]
[1758129262225,2.39583465,115830.0,115820.0,0.00359157]
[1758129263592,1.57486795,115830.0,115820.0,0.00359157]
[1758129263789,2.39583465,115830.0,115820.0,0.00359157]
[1758129264010,2.39583465,115830.0,115820.0,0.00673157]
[1758129266247,2.39583465,115830.0,115820.0,0.00359157]
[1758129266453,2.42030465,115830.0,115820.0,0.00359157]
[1758129266809,2.39583465,115830.0,115820.0,0.00359157]
[1758129268109,2.39583465,115830.0,115820.0,0.00673157]
[1758129268614,2.38903469,115830.0,115820.0,0.00673157]
[1758129269560,1.48275832,115830.0,115820.0,0.00600017]
[1758129269768,2.30372502,115830.0,115820.0,0.00600017]
[1758129270211,1.62112167,115830.0,115820.0,0.00600017]
[1758129270455,1.55320167,115830.0,115820.0,0.00600017]
[1758129270678,1.89320167,115830.0,115820.0,0.00600017]
[1758129270888,1.28112167,115830.0,115820.0,0.00600017]
[1758129271103,1.55316167,115830.0,115820.0,0.00600017]
[1758129271717,1.89316167,115830.0,115820.0,0.00600017]
[1758129271963,1.41756547,115830.0,115820.0,0.00600017]
[1758129272150,1.82804882,115830.0,115820.0,0.00600017]
[1758129272382,1.81187156,115830.0,115820.0,0.00600017]
[1758129272595,1.81187156,115830.0,115820.0,0.02326834]
[1758129272808,1.89714123,115830.0,115820.0,0.02326834]
[1758129273004,1.48661788,115830.0,115820.0,0.02326834]
[1758129273189,1.89710123,115830.0,115820.0,0.02326834]
[1758129273616,1.48661788,115830.0,115820.0,0.02326834]
[1758129273834,1.85133224,115830.0,115820.0,0.02326834]
[1758129274044,1.48661788,115830.0,115820.0,0.19595008]
[1758129274303,1.12934821,115830.0,115820.0,0.17868191]
[1758129274554,1.40130821,115830.0,115820.0,0.17868191]
[1758129276075,1.40130821,115830.0,115820.0,0.17878191]
[1758129276076,1.22864138,115830.0,115820.0,0.17878191]
[1758129276297,1.12934821,115830.0,115820.0,0.17878191]
[1758129276505,1.40130821,115830.0,115820.0,0.17878191]
[1758129277090,0.94809312,115830.0,115820.0,0.17878191]
[1758129277298,1.2286366,115830.0,115820.0,0.17878191]
[1758129278657,1.21997312,115830.0,115820.0,0.17878191]
[1758129279081,1.22865219,115830.0,115820.0,0.17878191]
[1758129280136,1.22857219,115830.0,115820.0,0.17878191]
[1758129281861,1.21989312,115830.0,115820.0,0.17878191]
[1758129283045,1.22849684,115830.0,115820.0,0.17878191]
[1758129283449,1.21989312,115830.0,115820.0,0.17878191]
[1758129284692,1.486548,115830.0,115820.0,0.00610017]
[1758129284941,1.486548,115830.0,115820.0,0.17878191]
[1758129286904,1.486548,115830.0,115820.0,0.00610017]
[1758129287161,1.85339236,115830.0,115820.0,0.00296017]
[1758129287535,1.85126236,115830.0,115820.0,0.00234792]
[1758129287741,1.85126236,115830.0,115820.0,0.00541792]
[1758129293035,1.486548,115830.0,115820.0,0.00541792]
[1758129293375,1.85126236,115830.0,115820.0,0.00541792]
[1758129293587,1.486548,115830.0,115820.0,0.00541792]
[1758129293814,1.85126236,115830.0,115820.0,0.00541792]
[1758129295336,1.486548,115830.0,115820.0,0.00541792]
[1758129295553,1.76599269,115830.0,115820.0,0.00541792]
[1758129295993,1.76599269,115830.0,115820.0,0.02268609]
[1758129296180,1.40127833,115830.0,115820.0,0.02268609]
[1758129296391,1.40123833,115830.0,115820.0,0.02268609]
[1758129297971,1.486508,115830.0,115820.0,0.02268609]
[1758129300427,1.486508,115830.0,115820.0,0.19536783]
[1758129300605,1.486508,115830.0,115820.0,0.17809966]
[1758129301045,1.40123833,115830.0,115820.0,0.00541792]
[1758129301323,0.84633312,115830.0,115820.0,0.19536783]
[1758129301553,0.84633312,115830.0,115820.0,0.17809966]
[1758129301804,0.73091155,115830.0,115820.0,0.17809966]
[1758129303016,0.76106345,115830.0,115820.0,0.17809966]
[1758129305170,0.93373028,115830.0,115820.0,0.17809966]
[1758129306910,0.76106345,115830.0,115820.0,0.17809966]
[1758129307728,0.73091155,115830.0,115820.0,0.17809966]
[1758129308162,0.90357838,115830.0,115820.0,0.17809966]
[1758129309161,0.73091155,115830.0,115820.0,0.17809966]
[1758129309788,0.70496,115830.0,115820.0,0.17809966]
[1758129311293,0.7351119,115830.0,115820.0,0.17809966]
[1758129311511,0.70496,115830.0,115820.0,0.54281402]
[1758129318285,0.09332,115830.0,115820.0,0.61696928]
[1758129318564,0.3646,115830.0,115820.0,0.61696928]
[1758129321460,0.17128,115830.0,115820.0,0.18097174]
[1758129323930,0.17128,115830.0,115820.0,0.5456861]
[1758129326159,0.17128,115830.0,115820.0,0.18097174]
[1758129326355,0.17128,115830.0,115820.0,0.5456861]
[1758129333367,0.17128,115830.0,115820.0,0.63095577]
[1758129333580,0.17128,115830.0,115820.0,0.5456861]
[1758129333799,0.4634719,115840.0,115830.0,0.17266683]
[1758129334026,0.81974157,115840.0,115830.0,0.17266683]
[1758129334237,0.81974157,115840.0,115830.0,0.17800683]
[1758129335062,0.82828469,115840.0,115830.0,0.17800683]
[1758129335294,0.81974157,115840.0,115830.0,0.17800683]
[1758129335420,0.81974157,115840.0,115830.0,0.17900683]
[1758129336952,0.54874157,115840.0,115830.0,0.17900683]
[1758129337156,0.7343919,115840.0,115830.0,0.25520103]
[1758129337306,0.7343919,115840.0,115830.0,0.58916024]
[1758129337709,0.7343919,115840.0,115830.0,0.17900683]
[1758129338296,0.4634719,115840.0,115830.0,0.58916024]
[1758129338497,0.7343919,115840.0,115830.0,0.58916024]
[1758129339143,0.7042,115840.0,115830.0,0.62683871]
[1758129339351,0.7042,115840.0,115830.0,0.58916024]
[1758129341264,0.7042,115840.0,115830.0,0.17586683]
[1758129341474,1.28895534,115840.0,115830.0,0.17586683]
[1758129341691,1.31620534,115840.0,115830.0,0.17586683]
[1758129341957,1.31620534,115840.0,115830.0,0.0032]
[1758129342164,1.40147501,115840.0,115830.0,0.0032]
[1758129342370,1.51689658,115840.0,115830.0,0.0011]
[1758129344785,1.92704999,115840.0,115830.0,0.0011]
[1758129348248,1.84178032,115840.0,115830.0,0.0011]
[1758129359617,1.84125032,115840.0,115830.0,0.0011]
[1758129361817,1.43109691,115840.0,115830.0,0.0011]
[1758129362058,1.43109691,115840.0,115830.0,0.01836668]
[1758129364512,1.43109691,115840.0,115830.0,0.19103351]
[1758129364773,1.43109691,115840.0,115830.0,0.17376683]
[1758129365458,1.43109691,115840.0,115830.0,0.0011]
[1758129365700,1.43109691,115840.0,115830.0,0.01836668]
[1758129365936,1.43109691,115840.0,115830.0,0.19103351]
[1758129366171,1.43109691,115840.0,115830.0,0.17376683]
[1758129366834,1.43109691,115840.0,115830.0,0.0011]
[1758129367078,1.43109691,115840.0,115830.0,0.01836668]
[1758129368001,1.43109691,115840.0,115830.0,0.19103351]
[1758129368230,1.43109691,115840.0,115830.0,0.0011]
[1758129368458,1.43109691,115840.0,115830.0,0.01836668]
[1758129369107,1.43109691,115840.0,115830.0,0.19103351]
[1758129369381,1.43109691,115840.0,115830.0,0.0011]
[1758129369678,1.43109691,115840.0,115830.0,0.01836668]
[1758129370125,1.40405691,115840.0,115830.0,0.19319351]
[1758129370348,1.40405691,115840.0,115830.0,0.17592683]
[1758129370680,1.42834691,115840.0,115830.0,0.17592683]
[1758129373155,0.70384,115840.0,115830.0,0.62442903]
[1758129373383,0.36384,115840.0,115830.0,0.21427562]
[1758129374040,0.09332,115840.0,115830.0,0.63316246]
[1758129374250,0.36384,115840.0,115830.0,0.63316246]
[1758129375026,0.00859996,115860.0,115850.0,0.17263703]
[1758129375279,0.09332,115870.0,115860.0,0.17262213]
[1758129375489,1.19926308,115870.0,115860.0,0.17478213]
[1758129375717,0.77399341,115870.0,115860.0,0.17794213]
[1758129375932,0.80414531,115870.0,115860.0,0.17794213]
[1758129376158,1.14414531,115870.0,115860.0,0.17794213]
[1758129376389,0.7339919,115870.0,115860.0,0.17794213]
[1758129376606,1.14419243,115870.0,115860.0,0.17794213]
[1758129377035,1.14419243,115870.0,115860.0,0.17894213]
[1758129377931,1.14419243,115870.0,115860.0,0.17904213]
[1758129378767,1.11404053,115870.0,115860.0,0.17904213]
[1758129379377,0.70388712,115870.0,115860.0,0.17904213]
[1758129379591,1.11404053,115870.0,115860.0,0.17904213]
[1758129380455,0.36388712,115870.0,115860.0,0.17904213]
[1758129380653,0.36388712,115870.0,115860.0,0.26383034]
[1758129380857,0.77404053,115870.0,115860.0,0.26383034]
[1758129381026,0.77404053,115870.0,115860.0,0.17904213]
[1758129383721,0.94879776,115870.0,115860.0,0.17588213]
[1758129383924,0.97308776,115870.0,115860.0,0.17588213]
[1758129384548,0.94879776,115870.0,115860.0,0.17588213]
[1758129384750,0.94664776,115870.0,115860.0,0.17588213]
[1758129384954,0.77404053,115870.0,115860.0,0.17904213]
[1758129387321,0.77619053,115870.0,115860.0,0.17588213]
[1758129387527,0.77404053,115870.0,115860.0,0.17904213]
[1758129387950,0.77619053,115870.0,115860.0,0.17588213]
[1758129388154,0.77404053,115870.0,115860.0,0.17904213]
[1758129391767,0.98194966,115870.0,115860.0,0.0011]
[1758129391974,1.00623966,115870.0,115860.0,0.0011]
[1758129392623,1.00623966,115870.0,115860.0,0.17588213]
[1758129392823,1.00108966,115870.0,115860.0,0.17588213]
[1758129393079,0.56664625,115870.0,115860.0,0.17904213]
[1758129393246,0.97679966,115870.0,115860.0,0.17904213]
[1758129393691,0.97679966,115870.0,115860.0,0.17588213]
[1758129394145,1.06729933,115870.0,115860.0,0.17372213]
[1758129394394,1.515569,115870.0,115860.0,0.17372213]
[1758129394641,1.43029933,115870.0,115860.0,0.17578213]
[1758129395761,1.43029933,115870.0,115860.0,0.17372213]
[1758129396444,1.02014592,115870.0,115860.0,0.17372213]
[1758129396740,1.43029933,115870.0,115860.0,0.17372213]
[1758129397817,1.3846168,115870.0,115860.0,0.17372213]
[1758129400123,1.01694592,115870.0,115860.0,0.17578213]
[1758129400334,1.3846168,115870.0,115860.0,0.17578213]
[1758129401290,1.3814168,115870.0,115860.0,0.17578213]
[1758129403509,1.02014592,115870.0,115860.0,0.17578213]
[1758129403724,1.3846168,115870.0,115860.0,0.17372213]
[1758129405673,1.01694592,115870.0,115860.0,0.17578213]
[1758129405872,1.3846168,115870.0,115860.0,0.17578213]
[1758129406066,1.3846168,115870.0,115860.0,0.17372213]
[1758129408000,1.3846168,115870.0,115860.0,0.17578213]
[1758129408194,1.3814168,115870.0,115860.0,0.17578213]
[1758129408762,1.3846168,115870.0,115860.0,0.17578213]
[1758129410151,1.3846168,115870.0,115860.0,0.17372213]
[1758129411007,1.2912968,115870.0,115860.0,0.17372213]
[1758129413676,1.37656647,115870.0,115860.0,0.0011]
[1758129415208,1.01209559,115870.0,115860.0,0.0011]
[1758129415483,1.37656647,115870.0,115860.0,0.0011]
[1758129417254,1.37656647,115870.0,115860.0,0.17372213]
[1758129417917,1.2912968,115870.0,115860.0,0.17372213]
[1758129418366,1.2912968,115870.0,115860.0,0.17583213]
[1758129418814,1.2912968,115870.0,115860.0,0.17372213]
[1758129419039,1.2912968,115870.0,115860.0,0.0011]
[1758129420129,0.92682592,115870.0,115860.0,0.0011]
[1758129420344,1.2912968,115870.0,115860.0,0.17372213]
[1758129422082,1.2912968,115870.0,115860.0,0.0011]
[1758129422960,1.37656647,115870.0,115860.0,0.0011]
[1758129425140,1.2912968,115870.0,115860.0,0.0011]
[1758129428352,0.92682592,115870.0,115860.0,0.0011]
[1758129428576,1.2912968,115870.0,115860.0,0.0011]
[1758129437148,1.29475527,115870.0,115860.0,0.0011]
[1758129438251,1.29475527,115870.0,115860.0,0.001]
[1758129438425,1.38002494,115870.0,115860.0,0.001]
[1758129440693,1.4446749,115870.0,115860.0,0.001]
[1758129440910,1.08020402,115870.0,115860.0,0.001]
[1758129441100,1.4446749,115870.0,115860.0,0.001]
[1758129441522,1.35940523,115870.0,115860.0,0.001]
[1758129446776,0.99493435,115870.0,115860.0,0.001]
[1758129446994,1.35940523,115870.0,115860.0,0.001]
[1758129448294,1.37557011,115870.0,115860.0,0.001]
[1758129457813,1.83133069,115870.0,115860.0,0.001]
[1758129458393,1.91660036,115870.0,115860.0,0.001]
[1758129465643,1.90043548,115870.0,115860.0,0.001]
[1758129467216,1.91663524,115870.0,115860.0,0.001]
[1758129467425,1.90043548,115870.0,115860.0,0.001]
[1758129467927,1.13453008,115870.0,115860.0,0.001]
[1758129468134,1.81500581,115870.0,115860.0,0.001]
[1758129468921,1.83120636,115870.0,115860.0,0.001]
[1758129482932,2.20448636,115870.0,115860.0,0.001]
[1758129483140,2.22489837,115870.0,115860.0,0.001]
[1758129483352,2.28975603,115870.0,115860.0,0.001]
[1758129484192,0.17263703,115850.0,115840.0,0.0001]
[1758129484429,0.93838243,115850.0,115840.0,0.0001]
[1758129484586,0.94038243,115850.0,115840.0,0.0001]
[1758129484806,0.96713243,115850.0,115840.0,0.0001]
[1758129485017,1.00869867,115850.0,115840.0,0.0001]
[1758129485211,0.17265193,115840.0,115830.0,0.06831573]
[1758129485413,1.40186923,115840.0,115830.0,0.07036573]
[1758129485619,1.40186923,115840.0,115830.0,0.00516]
[1758129485793,1.42781133,115840.0,115830.0,0.00516]
[1758129486002,1.513081,115840.0,115830.0,0.00516]
[1758129486227,1.515081,115840.0,115830.0,0.00215]
[1758129486438,1.541831,115840.0,115830.0,0.00215]
[1758129487478,1.538701,115840.0,115830.0,0.00415]
[1758129487694,1.538701,115840.0,115830.0,0.0001]
[1758129487899,1.541831,115840.0,115830.0,0.0001]
[1758129488166,1.541831,115840.0,115830.0,0.0011]
[1758129488608,1.541831,115840.0,115830.0,0.00315]
[1758129489695,1.538701,115840.0,115830.0,0.00315]
[1758129492721,1.541831,115840.0,115830.0,0.0011]
[1758129496277,1.541831,115840.0,115830.0,0.00315]
[1758129498813,1.541831,115840.0,115830.0,0.0011]
[1758129506259,1.95194673,115840.0,115830.0,0.0011]
[1758129507102,1.95194673,115840.0,115830.0,0.001]
[1758129510502,1.96812735,115840.0,115830.0,0.001]
[1758129510832,2.03195835,115840.0,115830.0,0.001]
[1758129511462,0.17266683,115830.0,115820.0,0.0001]
[1758129511682,1.3641521,115830.0,115820.0,0.0001]
[1758129511884,1.3929021,115830.0,115820.0,0.0001]
[1758129512086,1.41884781,115830.0,115820.0,0.0001]
[1758129512514,1.4188949,115830.0,115820.0,0.0001]
[1758129512715,1.4188949,115830.0,115820.0,0.00215]
[1758129513968,1.4188949,115830.0,115820.0,0.00315]
[1758129515321,1.4490468,115830.0,115820.0,0.00315]
[1758129515722,1.4490468,115830.0,115820.0,0.0011]
[1758129516877,1.4490468,115830.0,115820.0,0.001]
[1758129517790,0.9850004,115830.0,115820.0,0.001]
[1758129518010,1.82728799,115830.0,115820.0,0.001]
[1758129518566,1.80523186,115830.0,115820.0,0.001]
[1758129518786,1.80523186,115830.0,115810.0,0.0001]
[1758129518787,0.17268174,115820.0,115810.0,0.0001]
[1758129518991,0.75333681,115820.0,115810.0,0.0001]
[1758129519194,0.37286108,115820.0,115810.0,0.0001]
[1758129519464,0.78297681,115820.0,115810.0,0.0001]
[1758129519592,0.80892597,115820.0,115810.0,0.0001]
[1758129519806,0.76366872,115820.0,115810.0,0.0001]
[1758129520661,0.76466872,115820.0,115810.0,0.0001]
[1758129521369,0.39981024,115820.0,115810.0,0.0001]
[1758129522016,0.51269665,115810.0,115800.0,0.0001466]
[1758129522228,0.88779046,115810.0,115800.0,0.0001466]
[1758129522429,1.25462894,115810.0,115800.0,0.0001466]
[1758129522639,1.28228894,115810.0,115800.0,0.0001466]
[1758129522820,1.30823968,115810.0,115800.0,0.0001466]
[1758129523739,1.30823968,115810.0,115800.0,0.0011466]
[1758129524223,1.30823968,115810.0,115800.0,0.0010466]
[1758129527835,0.9433812,115810.0,115800.0,0.0010466]
[1758129528038,1.30823968,115810.0,115800.0,0.0010466]
[1758129532929,1.71939737,115810.0,115800.0,0.0010466]
[1758129533356,1.78367258,115810.0,115800.0,0.0010466]
[1758129533752,1.4188141,115810.0,115800.0,0.0010466]
[1758129533983,1.4188141,115810.0,115800.0,4.66e-05]
[1758129534385,1.4208141,115810.0,115800.0,4.66e-05]
[1758129541789,1.06455558,115810.0,115800.0,4.66e-05]
[1758129541985,1.42941406,115810.0,115800.0,4.66e-05]
[1758129542202,1.80285406,115810.0,115800.0,4.66e-05]
[1758129543474,2.16771254,115810.0,115800.0,4.66e-05]
[1758129543642,1.80285406,115810.0,115800.0,4.66e-05]
[1758129544935,1.78011992,115810.0,115800.0,0.0019966]
[1758129545077,1.78517992,115810.0,115800.0,0.0019966]
[1758129545527,1.78517992,115810.0,115800.0,4.66e-05]
[1758129548273,1.78521776,115810.0,115800.0,4.66e-05]
[1758129551014,1.7766178,115810.0,115800.0,4.66e-05]
[1758129551217,1.86188747,115810.0,115800.0,4.66e-05]
[1758129551900,1.95524747,115810.0,115800.0,4.66e-05]
[1758129555978,1.96384743,115810.0,115800.0,4.66e-05]
[1758129558490,1.96385298,115810.0,115800.0,4.66e-05]
[1758129571643,1.94766228,115810.0,115800.0,4.66e-05]
[1758129571859,1.96386754,115810.0,115800.0,4.66e-05]
[1758129574136,1.59900906,115810.0,115800.0,4.66e-05]
[1758129574357,1.96386754,115810.0,115800.0,4.66e-05]
[1758129575703,1.96387265,115810.0,115800.0,4.66e-05]
[1758129580001,2.00954242,115810.0,115800.0,4.66e-05]
[1758129583164,2.42007067,115810.0,115800.0,4.66e-05]
[1758129587381,2.42006936,115810.0,115800.0,4.66e-05]
[1758129594015,2.42006764,115810.0,115800.0,4.66e-05]
[1758129600186,2.41146768,115810.0,115800.0,4.66e-05]
[1758129600965,2.00093943,115810.0,115800.0,4.66e-05]
[1758129601444,2.41146768,115810.0,115800.0,4.66e-05]
[1758129605195,2.42006764,115810.0,115800.0,4.66e-05]
[1758129605741,2.42006786,115810.0,115800.0,4.66e-05]
[1758129606358,2.42006805,115810.0,115800.0,4.66e-05]
[1758129608353,2.41146809,115810.0,115800.0,4.66e-05]
[1758129609737,2.41146898,115810.0,115800.0,4.66e-05]
[1758129612579,1.59041248,115810.0,115800.0,4.66e-05]
[1758129612823,2.41146898,115810.0,115800.0,4.66e-05]
[1758129613453,1.59901244,115810.0,115800.0,4.66e-05]
[1758129613629,2.42006894,115810.0,115800.0,4.66e-05]
[1758129621153,2.39753894,115810.0,115800.0,0.0021466]
[1758129621361,2.00765292,115810.0,115800.0,0.0021466]
[1758129622586,1.59712467,115810.0,115800.0,0.0021466]
[1758129622829,2.00765292,115810.0,115800.0,0.0021466]
[1758129623024,2.01068292,115810.0,115800.0,0.0021466]
[1758129623275,2.00765292,115810.0,115800.0,0.0021466]
[1758129624039,2.01068292,115810.0,115800.0,0.0021466]
[1758129624287,2.42121117,115810.0,115800.0,0.0021466]
[1758129624483,2.00208296,115810.0,115800.0,4.66e-05]
[1758129627439,1.70118296,115810.0,115800.0,0.0021466]